[Event "Titled Tuesday Blitz May 31 Late 2022"]
[White "Mickiewicz, Piotr"]
[Black "Eljanov, Pavel"]
[WhiteFideId "1114891"]
[BlackFideId "14102951"]
[WhiteElo "2223"]
[BlackElo "2601"]
[Result "0-1"]
[Round "01"]
[TimeControl "180+1"]
[Date "2022.06.01"]
[WhiteClock "0:00:08"]
[BlackClock "0:00:29"]

1. e4 {[%clk 0:02:59]}  c6 {[%clk 0:03:00]} 2. d4 {[%clk 0:02:57]}  d5 {[%clk 0:03:01]} 3. Nc3 {[%clk 0:02:57]}  dxe4 {[%clk 0:03:01]} 4. Nxe4 {[%clk 0:02:58]}  Nf6 {[%clk 0:03:02]} 5. Nxf6+ {[%clk 0:02:57]}  exf6 {[%clk 0:03:02]} 6. c3 {[%clk 0:02:57]}  Bd6 {[%clk 0:03:02]} 7. Bd3 {[%clk 0:02:57]}  O-O {[%clk 0:03:01]} 8. Qc2 {[%clk 0:02:58]}  h5 {[%clk 0:03:00]} 9. Ne2 {[%clk 0:02:58]}  Re8 {[%clk 0:02:59]} 10. h3 {[%clk 0:02:58]}  h4 {[%clk 0:02:58]} 11. Be3 {[%clk 0:02:57]}  Nd7 {[%clk 0:02:53]} 12. O-O {[%clk 0:02:57]}  Nf8 {[%clk 0:02:50]} 13. c4 {[%clk 0:02:54]}  Bb8 {[%clk 0:02:40]} 14. Qc1 {[%clk 0:02:33]}  Ng6 {[%clk 0:02:32]} 15. f4 {[%clk 0:02:30]}  Qc7 {[%clk 0:02:02]} 16. Rf3 {[%clk 0:02:29]}  Ne7 {[%clk 0:01:59]} 17. Qc2 {[%clk 0:02:28]}  g6 {[%clk 0:01:59]} 18. Raf1 {[%clk 0:02:26]}  Bf5 {[%clk 0:01:58]} 19. Bf2 {[%clk 0:02:17]}  Bxd3 {[%clk 0:01:55]} 20. Qxd3 {[%clk 0:02:16]}  Nf5 {[%clk 0:01:55]} 21. Nc3 {[%clk 0:02:00]}  Kg7 {[%clk 0:01:44]} 22. b4 {[%clk 0:01:55]}  a5 {[%clk 0:01:41]} 23. b5 {[%clk 0:01:55]}  Qd7 {[%clk 0:01:36]} 24. Rd1 {[%clk 0:01:41]}  Bc7 {[%clk 0:01:04]} 25. bxc6 {[%clk 0:01:33]}  bxc6 {[%clk 0:01:04]} 26. Na4 {[%clk 0:01:33]}  Rab8 {[%clk 0:01:00]} 27. Nc5 {[%clk 0:01:33]}  Qe7 {[%clk 0:01:00]} 28. Re1 {[%clk 0:01:14]}  Qxe1+ {[%clk 0:01:00]} 29. Bxe1 {[%clk 0:01:13]}  Rxe1+ {[%clk 0:01:00]} 30. Rf1 {[%clk 0:01:10]}  Rxf1+ {[%clk 0:00:55]} 31. Kxf1 {[%clk 0:01:10]}  Bxf4 {[%clk 0:00:55]} 32. d5 {[%clk 0:00:47]}  cxd5 {[%clk 0:00:50]} 33. cxd5 {[%clk 0:00:47]}  Rb2 {[%clk 0:00:51]} 34. Ne4 {[%clk 0:00:39]}  Ne3+ {[%clk 0:00:47]} 35. Ke1 {[%clk 0:00:39]}  Nxg2+ {[%clk 0:00:43]} 36. Kd1 {[%clk 0:00:38]}  Ne3+ {[%clk 0:00:40]} 37. Kc1 {[%clk 0:00:36]}  Nc4+ {[%clk 0:00:29]} 38. Kd1 {[%clk 0:00:36]}  Rd2+ {[%clk 0:00:27]} 39. Nxd2 {[%clk 0:00:35]}  Nb2+ {[%clk 0:00:27]} 40. Ke2 {[%clk 0:00:35]}  Nxd3 {[%clk 0:00:27]} 41. Kxd3 {[%clk 0:00:34]}  Bxd2 {[%clk 0:00:28]} 42. Kxd2 {[%clk 0:00:33]}  g5 {[%clk 0:00:28]} 43. Kc3 {[%clk 0:00:31]}  f5 {[%clk 0:00:28]} 44. Kd4 {[%clk 0:00:30]}  g4 {[%clk 0:00:28]} 45. Ke5 {[%clk 0:00:16]}  gxh3 {[%clk 0:00:28]} 46. d6 {[%clk 0:00:12]}  h2 {[%clk 0:00:28]} 47. d7 {[%clk 0:00:11]}  h1=Q {[%clk 0:00:29]} 48. d8=Q {[%clk 0:00:08]}  Qe4+ {[%clk 0:00:29]} 0-1


[Site "https://www.chess.com"]

[Event "Titled Tuesday Blitz May 31 Late 2022"]
[White "Mortazavi, Ali"]
[Black "Hansen, Eric"]
[WhiteFideId "401323"]
[BlackFideId "2606771"]
[WhiteElo "2339"]
[BlackElo "2568"]
[Result "0-1"]
[Round "01"]
[TimeControl "180+1"]
[Date "2022.05.31"]
[WhiteClock "0:00:14"]
[BlackClock "0:00:15"]

1. Nf3 {[%clk 0:02:58]}  d5 {[%clk 0:02:58]} 2. g3 {[%clk 0:02:58]}  g6 {[%clk 0:02:57]} 3. Bg2 {[%clk 0:02:59]}  Bg7 {[%clk 0:02:57]} 4. O-O {[%clk 0:03:00]}  Nf6 {[%clk 0:02:58]} 5. d3 {[%clk 0:03:00]}  O-O {[%clk 0:02:59]} 6. Nbd2 {[%clk 0:03:00]}  Nc6 {[%clk 0:02:59]} 7. e4 {[%clk 0:03:01]}  e5 {[%clk 0:03:00]} 8. a4 {[%clk 0:02:54]}  Re8 {[%clk 0:02:56]} 9. a5 {[%clk 0:02:53]}  a6 {[%clk 0:02:57]} 10. exd5 {[%clk 0:02:51]}  Nxd5 {[%clk 0:02:57]} 11. Nc4 {[%clk 0:02:52]}  h6 {[%clk 0:02:56]} 12. Re1 {[%clk 0:02:51]}  Bg4 {[%clk 0:02:54]} 13. h3 {[%clk 0:02:51]}  Bf5 {[%clk 0:02:55]} 14. Nh4 {[%clk 0:02:49]}  Be6 {[%clk 0:02:55]} 15. Nf3 {[%clk 0:02:49]}  Ndb4 {[%clk 0:02:22]} 16. Ncxe5 {[%clk 0:02:33]}  Nxe5 {[%clk 0:02:22]} 17. Nxe5 {[%clk 0:02:34]}  Bd5 {[%clk 0:02:23]} 18. Nf3 {[%clk 0:02:24]}  Qf6 {[%clk 0:02:08]} 19. c3 {[%clk 0:02:09]}  Bxf3 {[%clk 0:01:58]} 20. Bxf3 {[%clk 0:02:06]}  Rxe1+ {[%clk 0:01:52]} 21. Qxe1 {[%clk 0:02:07]}  Nc2 {[%clk 0:01:37]} 22. Qd1 {[%clk 0:01:55]}  Nxa1 {[%clk 0:01:34]} 23. Kg2 {[%clk 0:01:43]}  Qe6 {[%clk 0:01:27]} 24. c4 {[%clk 0:01:31]}  Qe5 {[%clk 0:01:16]} 25. Qa4 {[%clk 0:01:21]}  Qe1 {[%clk 0:01:09]} 26. Be3 {[%clk 0:01:18]}  Qb1 {[%clk 0:00:59]} 27. Bxb7 {[%clk 0:01:11]}  Rb8 {[%clk 0:00:57]} 28. Bd5 {[%clk 0:01:10]}  Nc2 {[%clk 0:00:56]} 29. Bc5 {[%clk 0:00:57]}  Ne1+ {[%clk 0:00:53]} 30. Kh2 {[%clk 0:00:57]}  Nxd3 {[%clk 0:00:50]} 31. Be3 {[%clk 0:00:50]}  Qxb2 {[%clk 0:00:33]} 32. Qd7 {[%clk 0:00:33]}  Rf8 {[%clk 0:00:30]} 33. Kg2 {[%clk 0:00:30]}  Nxf2 {[%clk 0:00:20]} 34. Kf3 {[%clk 0:00:23]}  Nd3 {[%clk 0:00:16]} 35. Ke4 {[%clk 0:00:17]}  Qc2 {[%clk 0:00:15]} 36. Bxf7+ {[%clk 0:00:14]}  Rxf7 {[%clk 0:00:15]} 37. Qxd3 {[%clk 0:00:14]}  Re7+ {[%clk 0:00:15]} 0-1


[Site "https://www.chess.com"]

[Event "Titled Tuesday Blitz May 31 Late 2022"]
[White "Nakamura, Hikaru"]
[Black "Golubev, Mikhail"]
[WhiteFideId "2016192"]
[BlackFideId "14100983"]
[WhiteElo "2850"]
[BlackElo "2374"]
[Result "1-0"]
[Round "01"]
[TimeControl "180+1"]
[Date "2022.05.31"]
[WhiteClock "0:01:57"]
[BlackClock "0:00:26"]

1. Nf3 {[%clk 0:03:00]}  d6 {[%clk 0:02:59]} 2. d4 {[%clk 0:02:59]}  Nf6 {[%clk 0:02:59]} 3. Nc3 {[%clk 0:02:55]}  Nbd7 {[%clk 0:02:57]} 4. e4 {[%clk 0:02:55]}  e5 {[%clk 0:02:57]} 5. Bc4 {[%clk 0:02:55]}  Be7 {[%clk 0:02:57]} 6. O-O {[%clk 0:02:55]}  O-O {[%clk 0:02:57]} 7. a4 {[%clk 0:02:54]}  c6 {[%clk 0:02:56]} 8. h3 {[%clk 0:02:52]}  exd4 {[%clk 0:02:48]} 9. Nxd4 {[%clk 0:02:52]}  Nc5 {[%clk 0:02:48]} 10. Re1 {[%clk 0:02:52]}  a5 {[%clk 0:02:30]} 11. b3 {[%clk 0:02:47]}  Re8 {[%clk 0:02:17]} 12. Qf3 {[%clk 0:02:45]}  Be6 {[%clk 0:01:49]} 13. Bxe6 {[%clk 0:02:27]}  fxe6 {[%clk 0:01:50]} 14. Ba3 {[%clk 0:02:26]}  d5 {[%clk 0:01:38]} 15. exd5 {[%clk 0:02:22]}  exd5 {[%clk 0:01:36]} 16. Nf5 {[%clk 0:02:03]}  Bf8 {[%clk 0:01:31]} 17. Rxe8 {[%clk 0:02:03]}  Nxe8 {[%clk 0:01:23]} 18. Re1 {[%clk 0:02:02]}  Qf6 {[%clk 0:00:51]} 19. Nxd5 {[%clk 0:01:57]}  cxd5 {[%clk 0:00:51]} 20. Bxc5 {[%clk 0:01:57]}  Bxc5 {[%clk 0:00:42]} 21. Qxd5+ {[%clk 0:01:57]}  Qf7 {[%clk 0:00:26]} 22. Qxc5 {[%clk 0:01:57]} 1-0


[Site "https://www.chess.com"]

[Event "Titled Tuesday Blitz May 31 Late 2022"]
[White "Pein, Jonathan"]
[Black "Zhigalko, Sergei"]
[WhiteFideId "417092"]
[BlackFideId "13502956"]
[WhiteElo "2140"]
[BlackElo "2662"]
[Result "0-1"]
[Round "01"]
[TimeControl "180+1"]
[Date "2022.05.31"]
[WhiteClock "0:00:53"]
[BlackClock "0:00:05"]

1. Nf3 {[%clk 0:03:00]}  d5 {[%clk 0:02:59]} 2. g3 {[%clk 0:03:00]}  c6 {[%clk 0:02:56]} 3. Bg2 {[%clk 0:03:00]}  Bg4 {[%clk 0:02:56]} 4. d4 {[%clk 0:02:59]}  Nd7 {[%clk 0:02:55]} 5. Nbd2 {[%clk 0:02:59]}  Ngf6 {[%clk 0:02:54]} 6. O-O {[%clk 0:02:59]}  e6 {[%clk 0:02:54]} 7. b3 {[%clk 0:02:59]}  Be7 {[%clk 0:02:53]} 8. Bb2 {[%clk 0:03:00]}  O-O {[%clk 0:02:54]} 9. c4 {[%clk 0:03:00]}  a5 {[%clk 0:02:53]} 10. a3 {[%clk 0:02:57]}  h6 {[%clk 0:02:52]} 11. h3 {[%clk 0:02:53]}  Bf5 {[%clk 0:02:52]} 12. Re1 {[%clk 0:02:47]}  Re8 {[%clk 0:02:46]} 13. Ne5 {[%clk 0:02:47]}  Bh7 {[%clk 0:01:57]} 14. Ndf3 {[%clk 0:02:35]}  Nxe5 {[%clk 0:01:49]} 15. Nxe5 {[%clk 0:02:35]}  Bd6 {[%clk 0:01:49]} 16. Rc1 {[%clk 0:02:28]}  Be4 {[%clk 0:01:35]} 17. Nf3 {[%clk 0:02:16]}  Qe7 {[%clk 0:01:31]} 18. c5 {[%clk 0:02:13]}  Bc7 {[%clk 0:01:32]} 19. Qd2 {[%clk 0:02:11]}  Nd7 {[%clk 0:01:30]} 20. Bc3 {[%clk 0:02:07]}  e5 {[%clk 0:01:10]} 21. dxe5 {[%clk 0:02:06]}  Qxc5 {[%clk 0:01:03]} 22. e6 {[%clk 0:01:56]}  Rxe6 {[%clk 0:00:42]} 23. Bxg7 {[%clk 0:01:51]}  Qxa3 {[%clk 0:00:42]} 24. Bxh6 {[%clk 0:01:48]}  Qb4 {[%clk 0:00:36]} 25. Qg5+ {[%clk 0:01:38]}  Rg6 {[%clk 0:00:36]} 26. Qh5 {[%clk 0:01:38]}  Nf6 {[%clk 0:00:33]} 27. Qh4 {[%clk 0:01:35]}  Bxf3 {[%clk 0:00:33]} 28. Qxb4 {[%clk 0:01:10]}  axb4 {[%clk 0:00:32]} 29. exf3 {[%clk 0:01:08]}  Rxh6 {[%clk 0:00:32]} 30. Re7 {[%clk 0:01:09]}  Ne8 {[%clk 0:00:20]} 31. Rce1 {[%clk 0:01:05]}  Kf8 {[%clk 0:00:20]} 32. f4 {[%clk 0:01:03]}  Re6 {[%clk 0:00:06]} 33. R7xe6 {[%clk 0:01:02]}  fxe6 {[%clk 0:00:06]} 34. Rxe6 {[%clk 0:01:01]}  Ra3 {[%clk 0:00:07]} 35. Re3 {[%clk 0:01:00]}  Bb6 {[%clk 0:00:06]} 36. Rf3 {[%clk 0:00:56]}  Nd6 {[%clk 0:00:06]} 37. g4 {[%clk 0:00:51]}  Ne4 {[%clk 0:00:06]} 38. f5 {[%clk 0:00:52]}  Nxf2 {[%clk 0:00:04]} 39. g5 {[%clk 0:00:52]}  Ne4+ {[%clk 0:00:03]} 40. Kh2 {[%clk 0:00:52]}  Nxg5 {[%clk 0:00:04]} 41. Rg3 {[%clk 0:00:53]}  Bc7 {[%clk 0:00:04]} 42. h4 {[%clk 0:00:53]}  Rxb3 {[%clk 0:00:05]} 43. hxg5 {[%clk 0:00:53]}  Rxg3 {[%clk 0:00:05]} 0-1


[Site "https://www.chess.com"]

[Event "Titled Tuesday Blitz May 31 Late 2022"]
[White "Pinheiro, Iung Alicio de O."]
[Black "Pichot, Alan"]
[WhiteFideId "2104350"]
[BlackFideId "110973"]
[WhiteElo "2283"]
[BlackElo "2579"]
[Result "0-1"]
[Round "01"]
[TimeControl "180+1"]
[Date "2022.05.31"]
[WhiteClock "0:00:06"]
[BlackClock "0:00:59"]

1. c4 {[%clk 0:02:58]}  e5 {[%clk 0:02:59]} 2. g3 {[%clk 0:02:57]}  Nf6 {[%clk 0:02:59]} 3. Bg2 {[%clk 0:02:52]}  Bc5 {[%clk 0:02:59]} 4. Nc3 {[%clk 0:02:46]}  c6 {[%clk 0:02:59]} 5. e3 {[%clk 0:02:26]}  d6 {[%clk 0:02:50]} 6. Nge2 {[%clk 0:02:24]}  Nbd7 {[%clk 0:02:48]} 7. h3 {[%clk 0:02:22]}  O-O {[%clk 0:02:48]} 8. a3 {[%clk 0:02:18]}  a5 {[%clk 0:02:47]} 9. O-O {[%clk 0:02:02]}  Re8 {[%clk 0:02:44]} 10. d4 {[%clk 0:01:48]}  Ba7 {[%clk 0:02:44]} 11. Qc2 {[%clk 0:01:30]}  Qe7 {[%clk 0:02:36]} 12. g4 {[%clk 0:01:28]}  Nf8 {[%clk 0:02:33]} 13. dxe5 {[%clk 0:01:17]}  dxe5 {[%clk 0:02:33]} 14. Ng3 {[%clk 0:01:17]}  h6 {[%clk 0:02:28]} 15. b3 {[%clk 0:01:12]}  Ng6 {[%clk 0:02:27]} 16. Nce4 {[%clk 0:01:02]}  Nh4 {[%clk 0:02:27]} 17. Bh1 {[%clk 0:01:02]}  Nh7 {[%clk 0:01:54]} 18. c5 {[%clk 0:00:58]}  Ng5 {[%clk 0:01:51]} 19. Nxg5 {[%clk 0:00:52]}  Qxg5 {[%clk 0:01:51]} 20. Kh2 {[%clk 0:00:49]}  Be6 {[%clk 0:01:50]} 21. f4 {[%clk 0:00:48]}  exf4 {[%clk 0:01:49]} 22. exf4 {[%clk 0:00:48]}  Qxc5 {[%clk 0:01:50]} 23. Qxc5 {[%clk 0:00:44]}  Bxc5 {[%clk 0:01:51]} 24. f5 {[%clk 0:00:45]}  Bxb3 {[%clk 0:01:50]} 25. Rb1 {[%clk 0:00:41]}  a4 {[%clk 0:01:50]} 26. Bf4 {[%clk 0:00:40]}  Rad8 {[%clk 0:01:47]} 27. Ne4 {[%clk 0:00:37]}  Bd4 {[%clk 0:01:43]} 28. Kg3 {[%clk 0:00:36]}  g5 {[%clk 0:01:34]} 29. fxg6 {[%clk 0:00:34]}  Nxg6 {[%clk 0:01:34]} 30. Bxh6 {[%clk 0:00:31]}  Be5+ {[%clk 0:01:35]} 31. Kf2 {[%clk 0:00:30]}  Rd3 {[%clk 0:01:31]} 32. Bg5 {[%clk 0:00:24]}  Rxh3 {[%clk 0:01:19]} 33. Nf6+ {[%clk 0:00:22]}  Bxf6 {[%clk 0:01:20]} 34. Bxf6 {[%clk 0:00:23]}  Nf4 {[%clk 0:01:19]} 35. Bf3 {[%clk 0:00:21]}  Bd5 {[%clk 0:01:08]} 36. Bxd5 {[%clk 0:00:07]}  Nxd5 {[%clk 0:01:09]} 37. g5 {[%clk 0:00:06]}  Nf4 {[%clk 0:00:59]} 0-1


[Site "https://www.chess.com"]

[Event "Titled Tuesday Blitz May 31 Late 2022"]
[White "Plazuelo Pascual, Juan"]
[Black "Grischuk, Alexander"]
[WhiteFideId "32059566"]
[BlackFideId "4126025"]
[WhiteElo "2359"]
[BlackElo "2762"]
[Result "0-1"]
[Round "01"]
[TimeControl "180+1"]
[Date "2022.05.31"]
[WhiteClock "0:00:02"]
[BlackClock "0:00:02"]

1. d4 {[%clk 0:02:59]}  Nf6 {[%clk 0:02:59]} 2. c4 {[%clk 0:02:59]}  e6 {[%clk 0:02:59]} 3. Nc3 {[%clk 0:02:59]}  Bb4 {[%clk 0:02:58]} 4. Qc2 {[%clk 0:02:59]}  d6 {[%clk 0:02:52]} 5. Bd2 {[%clk 0:02:58]}  c5 {[%clk 0:02:39]} 6. dxc5 {[%clk 0:02:56]}  dxc5 {[%clk 0:02:39]} 7. Nf3 {[%clk 0:02:52]}  Nc6 {[%clk 0:02:31]} 8. e3 {[%clk 0:02:51]}  O-O {[%clk 0:02:28]} 9. Be2 {[%clk 0:02:47]}  b6 {[%clk 0:02:25]} 10. a3 {[%clk 0:02:44]}  Ba5 {[%clk 0:02:25]} 11. O-O {[%clk 0:02:42]}  Bb7 {[%clk 0:02:25]} 12. Rfd1 {[%clk 0:02:42]}  Qe7 {[%clk 0:02:26]} 13. Be1 {[%clk 0:02:40]}  h6 {[%clk 0:02:24]} 14. h3 {[%clk 0:02:39]}  Rfd8 {[%clk 0:02:17]} 15. Rab1 {[%clk 0:02:38]}  Rxd1 {[%clk 0:02:10]} 16. Rxd1 {[%clk 0:02:38]}  Rd8 {[%clk 0:02:10]} 17. Rxd8+ {[%clk 0:02:38]}  Qxd8 {[%clk 0:02:10]} 18. Qd1 {[%clk 0:02:32]}  Qe7 {[%clk 0:02:05]} 19. Nb5 {[%clk 0:02:16]}  Bxe1 {[%clk 0:02:04]} 20. Nxe1 {[%clk 0:02:16]}  Nd7 {[%clk 0:01:36]} 21. Nc2 {[%clk 0:01:27]}  Kf8 {[%clk 0:01:23]} 22. Qd2 {[%clk 0:01:11]}  Nde5 {[%clk 0:01:07]} 23. f4 {[%clk 0:01:11]}  Nd7 {[%clk 0:00:46]} 24. Bf3 {[%clk 0:01:10]}  e5 {[%clk 0:00:45]} 25. Nd6 {[%clk 0:00:56]}  Ba8 {[%clk 0:00:44]} 26. Nc8 {[%clk 0:00:56]}  Qe6 {[%clk 0:00:25]} 27. Bd5 {[%clk 0:00:47]}  Qf6 {[%clk 0:00:24]} 28. Nxa7 {[%clk 0:00:34]}  Nxa7 {[%clk 0:00:21]} 29. Bxa8 {[%clk 0:00:34]}  Ke7 {[%clk 0:00:19]} 30. b4 {[%clk 0:00:30]}  Nc8 {[%clk 0:00:18]} 31. Bd5 {[%clk 0:00:20]}  Nd6 {[%clk 0:00:18]} 32. Qc3 {[%clk 0:00:15]}  Qf5 {[%clk 0:00:13]} 33. Bc6 {[%clk 0:00:12]}  exf4 {[%clk 0:00:12]} 34. exf4 {[%clk 0:00:06]}  Qxf4 {[%clk 0:00:12]} 35. Ne3 {[%clk 0:00:04]}  Nf6 {[%clk 0:00:12]} 36. bxc5 {[%clk 0:00:04]}  bxc5 {[%clk 0:00:11]} 37. Bf3 {[%clk 0:00:05]}  Qd4 {[%clk 0:00:03]} 38. Qe1 {[%clk 0:00:04]}  Kf8 {[%clk 0:00:03]} 39. Kh2 {[%clk 0:00:04]}  Nxc4 {[%clk 0:00:02]} 40. Nxc4 {[%clk 0:00:03]}  Qxc4 {[%clk 0:00:03]} 41. Qe5 {[%clk 0:00:03]}  Qd4 {[%clk 0:00:02]} 42. Qb8+ {[%clk 0:00:03]}  Ke7 {[%clk 0:00:03]} 43. Qb7+ {[%clk 0:00:04]}  Qd7 {[%clk 0:00:02]} 44. Qa6 {[%clk 0:00:02]}  Qd6+ {[%clk 0:00:02]} 45. Qxd6+ {[%clk 0:00:03]}  Kxd6 {[%clk 0:00:03]} 46. Kg3 {[%clk 0:00:03]}  c4 {[%clk 0:00:04]} 47. Kf2 {[%clk 0:00:04]}  Kc5 {[%clk 0:00:04]} 48. Ke3 {[%clk 0:00:05]}  Nd7 {[%clk 0:00:05]} 49. g4 {[%clk 0:00:03]}  Nb6 {[%clk 0:00:04]} 50. Kd2 {[%clk 0:00:03]}  Kd4 {[%clk 0:00:04]} 51. Bc6 {[%clk 0:00:03]}  c3+ {[%clk 0:00:03]} 52. Kc2 {[%clk 0:00:03]}  Nc4 {[%clk 0:00:03]} 53. a4 {[%clk 0:00:03]}  Ne3+ {[%clk 0:00:04]} 54. Kb3 {[%clk 0:00:02]}  Kd3 {[%clk 0:00:02]} 55. Be8 {[%clk 0:00:02]}  c2 {[%clk 0:00:02]} 56. Bb5+ {[%clk 0:00:02]}  Kd2 {[%clk 0:00:02]} 0-1


[Site "https://www.chess.com"]

[Event "Titled Tuesday Blitz May 31 Late 2022"]
[White "Poormosavi, Seyed Kian"]
[Black "Bortnyk, Olexandr"]
[WhiteFideId "12585807"]
[BlackFideId "14120828"]
[WhiteElo "2222"]
[BlackElo "2723"]
[Result "0-1"]
[Round "01"]
[TimeControl "180+1"]
[Date "2022.05.31"]
[WhiteClock "0:00:02"]
[BlackClock "0:00:12"]

1. Nf3 {[%clk 0:00:49]}  d6 {[%clk 0:03:00]} 2. g3 {[%clk 0:00:44]}  Nf6 {[%clk 0:00:45]} 3. Bg2 {[%clk 0:00:42]}  g6 {[%clk 0:00:44]} 4. O-O {[%clk 0:00:41]}  Bg7 {[%clk 0:00:44]} 5. d4 {[%clk 0:00:42]}  O-O {[%clk 0:00:45]} 6. c4 {[%clk 0:00:42]}  Bf5 {[%clk 0:00:43]} 7. Nc3 {[%clk 0:00:41]}  Ne4 {[%clk 0:00:43]} 8. Ne1 {[%clk 0:00:36]}  Nxc3 {[%clk 0:00:42]} 9. bxc3 {[%clk 0:00:36]}  Nc6 {[%clk 0:00:40]} 10. e4 {[%clk 0:00:33]}  Bd7 {[%clk 0:00:34]} 11. Nd3 {[%clk 0:00:24]}  Na5 {[%clk 0:00:34]} 12. c5 {[%clk 0:00:24]}  Bb5 {[%clk 0:00:34]} 13. a4 {[%clk 0:00:20]}  Bxd3 {[%clk 0:00:34]} 14. Qxd3 {[%clk 0:00:19]}  dxc5 {[%clk 0:00:35]} 15. Be3 {[%clk 0:00:17]}  c6 {[%clk 0:00:31]} 16. Rfd1 {[%clk 0:00:16]}  c4 {[%clk 0:00:30]} 17. Qc2 {[%clk 0:00:15]}  Nb3 {[%clk 0:00:30]} 18. Rab1 {[%clk 0:00:15]}  Qa5 {[%clk 0:00:29]} 19. Qa2 {[%clk 0:00:14]}  Qxc3 {[%clk 0:00:29]} 20. d5 {[%clk 0:00:12]}  cxd5 {[%clk 0:00:28]} 21. exd5 {[%clk 0:00:13]}  Rfd8 {[%clk 0:00:28]} 22. d6 {[%clk 0:00:13]}  Rxd6 {[%clk 0:00:28]} 23. Rxd6 {[%clk 0:00:13]}  exd6 {[%clk 0:00:29]} 24. Bxb7 {[%clk 0:00:13]}  Rb8 {[%clk 0:00:30]} 25. Bg2 {[%clk 0:00:13]}  Bd4 {[%clk 0:00:30]} 26. Bxd4 {[%clk 0:00:12]}  Qxd4 {[%clk 0:00:31]} 27. h4 {[%clk 0:00:11]}  h5 {[%clk 0:00:31]} 28. Qc2 {[%clk 0:00:11]}  Kg7 {[%clk 0:00:30]} 29. Rd1 {[%clk 0:00:12]}  Qc5 {[%clk 0:00:23]} 30. Qc3+ {[%clk 0:00:12]}  Kg8 {[%clk 0:00:22]} 31. Rd5 {[%clk 0:00:13]}  Qb4 {[%clk 0:00:21]} 32. Qf6 {[%clk 0:00:11]}  c3 {[%clk 0:00:19]} 33. Rg5 {[%clk 0:00:10]}  Qd4 {[%clk 0:00:16]} 34. Rxg6+ {[%clk 0:00:05]}  fxg6 {[%clk 0:00:17]} 35. Qxg6+ {[%clk 0:00:06]}  Kf8 {[%clk 0:00:17]} 36. Qh6+ {[%clk 0:00:06]}  Qg7 {[%clk 0:00:17]} 37. Qf4+ {[%clk 0:00:06]}  Ke7 {[%clk 0:00:17]} 38. Qe4+ {[%clk 0:00:04]}  Kd8 {[%clk 0:00:17]} 39. Qd3 {[%clk 0:00:02]}  Nd4 {[%clk 0:00:16]} 40. Qa6 {[%clk 0:00:01]}  Rb1+ {[%clk 0:00:11]} 41. Kh2 {[%clk 0:00:01]}  Rb6 {[%clk 0:00:12]} 42. Qa5 {[%clk 0:00:01]}  c2 {[%clk 0:00:12]} 43. Qd5 {[%clk 0:00:01]}  c1=Q {[%clk 0:00:12]} 44. Qa8+ {[%clk 0:00:02]}  Qc8 {[%clk 0:00:12]} 0-1


[Site "https://www.chess.com"]

[Event "Titled Tuesday Blitz May 31 Late 2022"]
[White "Richter, Nils"]
[Black "Kamsky, Gata"]
[WhiteFideId "12990809"]
[BlackFideId "2000024"]
[WhiteElo "2243"]
[BlackElo "2645"]
[Result "0-1"]
[Round "01"]
[TimeControl "180+1"]
[Date "2022.05.31"]
[WhiteClock "0:00:10"]
[BlackClock "0:00:55"]

1. Nf3 {[%clk 0:02:31]}  f5 {[%clk 0:02:58]} 2. d3 {[%clk 0:02:30]}  d6 {[%clk 0:02:57]} 3. e4 {[%clk 0:02:31]}  e5 {[%clk 0:02:58]} 4. Nc3 {[%clk 0:02:28]}  Nf6 {[%clk 0:02:56]} 5. exf5 {[%clk 0:02:25]}  Bxf5 {[%clk 0:02:56]} 6. d4 {[%clk 0:02:26]}  e4 {[%clk 0:02:32]} 7. Nh4 {[%clk 0:02:25]}  Bd7 {[%clk 0:02:22]} 8. Bc4 {[%clk 0:02:07]}  Nc6 {[%clk 0:02:18]} 9. Nxe4 {[%clk 0:01:54]}  Qe7 {[%clk 0:02:13]} 10. O-O {[%clk 0:01:44]}  Nxe4 {[%clk 0:02:07]} 11. Qh5+ {[%clk 0:01:44]}  Kd8 {[%clk 0:01:56]} 12. Re1 {[%clk 0:01:25]}  d5 {[%clk 0:01:19]} 13. Bxd5 {[%clk 0:01:01]}  Nf6 {[%clk 0:01:18]} 14. Qd1 {[%clk 0:01:01]}  Qd6 {[%clk 0:01:17]} 15. Bf3 {[%clk 0:00:54]}  Qxd4 {[%clk 0:01:13]} 16. Bg5 {[%clk 0:00:46]}  Qxd1 {[%clk 0:01:11]} 17. Raxd1 {[%clk 0:00:47]}  Bd6 {[%clk 0:01:11]} 18. c4 {[%clk 0:00:43]}  Re8 {[%clk 0:01:09]} 19. Rxe8+ {[%clk 0:00:40]}  Kxe8 {[%clk 0:01:09]} 20. a3 {[%clk 0:00:28]}  a5 {[%clk 0:01:08]} 21. Bxf6 {[%clk 0:00:17]}  gxf6 {[%clk 0:01:08]} 22. Bh5+ {[%clk 0:00:18]}  Kf8 {[%clk 0:01:07]} 23. g4 {[%clk 0:00:17]}  Be6 {[%clk 0:01:04]} 24. b3 {[%clk 0:00:16]}  Bxa3 {[%clk 0:01:02]} 25. Nf5 {[%clk 0:00:14]}  Bxf5 {[%clk 0:01:02]} 26. gxf5 {[%clk 0:00:15]}  Rd8 {[%clk 0:01:01]} 27. Re1 {[%clk 0:00:15]}  Bc5 {[%clk 0:00:58]} 28. Re6 {[%clk 0:00:12]}  Kg7 {[%clk 0:00:56]} 29. Bf3 {[%clk 0:00:11]}  Nd4 {[%clk 0:00:55]} 30. Bd5 {[%clk 0:00:10]}  Nxe6 {[%clk 0:00:55]} 0-1


[Site "https://www.chess.com"]